[Event "Early-Titled-Tuesday-Blitz-June-18-2024"]
[Site "Chess.com"]
[Date "2024.06.18"]
[Round "5"]
[White "Renatoforf"]
[Black "KanalSzachowy"]
[Result "0-1"]
[WhiteElo "2123"]
[BlackElo "2366"]
[TimeControl "180+1"]
[EndTime "8:53:39 PDT"]
[Termination "KanalSzachowy won by resignation"]

1. e4 {[%clk 0:03:00.9]} 1... a6 {[%clk 0:03:00.9]} 2. d4 {[%clk 0:02:59.6]}
2... e6 {[%clk 0:03:01.4]} 3. Nf3 {[%clk 0:02:58.9]} 3... h6 {[%clk 0:03:02]} 4.
c4 {[%clk 0:02:56.5]} 4... b5 {[%clk 0:03:02.6]} 5. cxb5 {[%clk 0:02:54.8]} 5...
g6 {[%clk 0:02:59.1]} 6. bxa6 {[%clk 0:02:53.1]} 6... Bxa6 {[%clk 0:03:00]} 7.
Bxa6 {[%clk 0:02:51.7]} 7... Nxa6 {[%clk 0:03:00.8]} 8. O-O {[%clk 0:02:51.3]}
8... Bg7 {[%clk 0:03:00]} 9. Nc3 {[%clk 0:02:51.3]} 9... Ne7 {[%clk 0:02:56.4]}
10. Be3 {[%clk 0:02:46]} 10... O-O {[%clk 0:02:52.4]} 11. Qd2 {[%clk 0:02:45]}
11... Kh7 {[%clk 0:02:52.6]} 12. Rfc1 {[%clk 0:02:40]} 12... d6 {[%clk
0:02:42.4]} 13. a3 {[%clk 0:02:35.3]} 13... c5 {[%clk 0:02:39.7]} 14. dxc5
{[%clk 0:02:34]} 14... Nxc5 {[%clk 0:02:39.7]} 15. Bxc5 {[%clk 0:02:33]} 15...
dxc5 {[%clk 0:02:40.6]} 16. Qxd8 {[%clk 0:02:32.2]} 16... Rfxd8 {[%clk
0:02:38.7]} 17. Rd1 {[%clk 0:02:31.2]} 17... Rdb8 {[%clk 0:02:34.7]} 18. Rd2
{[%clk 0:02:30.1]} 18... Rxb2 {[%clk 0:02:26.1]} 19. Rxb2 {[%clk 0:02:25]} 19...
Bxc3 {[%clk 0:02:26.6]} 20. Rbb1 {[%clk 0:02:22.8]} 20... Bxa1 {[%clk
0:02:26.6]} 21. Rxa1 {[%clk 0:02:21.9]} 21... Nc6 {[%clk 0:02:27.3]} 22. Rc1
{[%clk 0:02:20.2]} 22... Rxa3 {[%clk 0:02:21.7]} 23. h3 {[%clk 0:02:20.6]} 23...
Ra5 {[%clk 0:02:17.8]} 24. Kf1 {[%clk 0:02:18.4]} 24... Nb4 {[%clk 0:02:16]} 25.
Rc4 {[%clk 0:02:16.3]} 25... Nd3 {[%clk 0:02:12.2]} 26. Ke2 {[%clk 0:02:14.2]}
26... Nf4+ {[%clk 0:02:09.6]} 27. Ke3 {[%clk 0:02:12.9]} 27... Nxg2+ {[%clk
0:02:08.9]} 0-1

[Event "Early-Titled-Tuesday-Blitz-June-18-2024"]
[Site "Chess.com"]
[Date "2024.06.18"]
[Round "5"]
[White "anemih"]
[Black "crazy_but_lazy"]
[Result "0-1"]
[WhiteElo "2478"]
[BlackElo "2666"]
[TimeControl "180+1"]
[EndTime "8:53:44 PDT"]
[Termination "crazy_but_lazy won by checkmate"]

1. e4 {[%clk 0:02:56.4]} 1... g6 {[%clk 0:02:58.5]} 2. d4 {[%clk 0:02:56.4]}
2... Bg7 {[%clk 0:02:58.8]} 3. c4 {[%clk 0:02:56.9]} 3... d6 {[%clk 0:02:58.4]}
4. Nc3 {[%clk 0:02:57.2]} 4... Nc6 {[%clk 0:02:57]} 5. Be3 {[%clk 0:02:56.8]}
5... e5 {[%clk 0:02:57.5]} 6. d5 {[%clk 0:02:56.9]} 6... Nd4 {[%clk 0:02:58]} 7.
Nge2 {[%clk 0:02:54.4]} 7... c5 {[%clk 0:02:56.2]} 8. f4 {[%clk 0:02:45.8]} 8...
exf4 {[%clk 0:02:32.5]} 9. Bxf4 {[%clk 0:02:38.6]} 9... Ne7 {[%clk 0:02:18.2]}
10. Nxd4 {[%clk 0:02:34.7]} 10... cxd4 {[%clk 0:02:16.5]} 11. Nb5 {[%clk
0:02:34.9]} 11... O-O {[%clk 0:02:17.2]} 12. Nxd4 {[%clk 0:02:27.2]} 12... Qa5+
{[%clk 0:02:04.5]} 13. Bd2 {[%clk 0:02:09.5]} 13... Qb6 {[%clk 0:02:04.1]} 14.
Bc3 {[%clk 0:02:09.3]} 14... f5 {[%clk 0:02:04.5]} 15. exf5 {[%clk 0:01:59.1]}
15... Nxf5 {[%clk 0:02:05.4]} 16. Nxf5 {[%clk 0:01:56.4]} 16... Rxf5 {[%clk
0:01:59.8]} 17. Bd3 {[%clk 0:01:47.8]} 17... Qf2# {[%clk 0:01:59.3]} 0-1

[Event "Early-Titled-Tuesday-Blitz-June-18-2024"]
[Site "Chess.com"]
[Date "2024.06.18"]
[Round "5"]
[White "ketster"]
[Black "DinaBelenkaya"]
[Result "1-0"]
[WhiteElo "2570"]
[BlackElo "2332"]
[TimeControl "180+1"]
[EndTime "8:54:22 PDT"]
[Termination "ketster won by resignation"]

1. d4 {[%clk 0:02:43.3]} 1... d5 {[%clk 0:02:27.7]} 2. c4 {[%clk 0:02:42.7]}
2... dxc4 {[%clk 0:02:28.6]} 3. Nf3 {[%clk 0:02:42.5]} 3... Nf6 {[%clk
0:02:28.2]} 4. e3 {[%clk 0:02:42.9]} 4... e6 {[%clk 0:02:26.5]} 5. Bxc4 {[%clk
0:02:43]} 5... a6 {[%clk 0:02:26]} 6. O-O {[%clk 0:02:42.7]} 6... c5 {[%clk
0:02:26]} 7. b3 {[%clk 0:02:42.4]} 7... Be7 {[%clk 0:02:22.8]} 8. Bb2 {[%clk
0:02:42.2]} 8... O-O {[%clk 0:02:22.6]} 9. Qe2 {[%clk 0:02:41.7]} 9... b5 {[%clk
0:02:22.3]} 10. Bd3 {[%clk 0:02:42]} 10... Bb7 {[%clk 0:02:21.6]} 11. Rd1 {[%clk
0:02:40.9]} 11... Nbd7 {[%clk 0:02:21.1]} 12. Nc3 {[%clk 0:02:29.2]} 12... cxd4
{[%clk 0:02:13]} 13. Nxd4 {[%clk 0:02:28.7]} 13... Qb8 {[%clk 0:02:06.5]} 14.
Rac1 {[%clk 0:02:24.7]} 14... Nc5 {[%clk 0:02:00.6]} 15. Bb1 {[%clk 0:02:24.2]}
15... b4 {[%clk 0:02:00]} 16. Na4 {[%clk 0:02:16.8]} 16... Nxa4 {[%clk
0:01:59.9]} 17. bxa4 {[%clk 0:02:17.7]} 17... Rc8 {[%clk 0:01:56]} 18. e4 {[%clk
0:02:11.8]} 18... Qe5 {[%clk 0:01:48.8]} 19. Nf5 {[%clk 0:01:58.3]} 19... Qxb2
{[%clk 0:01:24.7]} 20. Nxe7+ {[%clk 0:01:57.5]} 20... Kf8 {[%clk 0:01:25]} 21.
Qxb2 {[%clk 0:01:55.6]} 21... Kxe7 {[%clk 0:01:25.3]} 22. Qxb4+ {[%clk
0:01:55.1]} 1-0

[Event "Early-Titled-Tuesday-Blitz-June-18-2024"]
[Site "Chess.com"]
[Date "2024.06.18"]
[Round "5"]
[White "SHIVACalypso"]
[Black "RandomNoob04"]
[Result "0-1"]
[WhiteElo "2528"]
[BlackElo "2814"]
[TimeControl "180+1"]
[EndTime "8:54:32 PDT"]
[Termination "RandomNoob04 won by resignation"]

1. Nf3 {[%clk 0:03:00.9]} 1... d5 {[%clk 0:02:59.4]} 2. c4 {[%clk 0:03:01.2]}
2... dxc4 {[%clk 0:02:59.1]} 3. e3 {[%clk 0:03:01.2]} 3... Be6 {[%clk
0:02:56.4]} 4. Ng5 {[%clk 0:02:52.5]} 4... Bd5 {[%clk 0:02:55.8]} 5. e4 {[%clk
0:02:53]} 5... Bc6 {[%clk 0:02:51.5]} 6. Bxc4 {[%clk 0:02:50.1]} 6... e6 {[%clk
0:02:51.9]} 7. d4 {[%clk 0:02:46.3]} 7... h6 {[%clk 0:02:51.2]} 8. Nxe6 {[%clk
0:02:24.1]} 8... fxe6 {[%clk 0:02:46.7]} 9. Qh5+ {[%clk 0:02:24.5]} 9... Ke7
{[%clk 0:02:35.4]} 10. Bg5+ {[%clk 0:02:08.3]} 10... hxg5 {[%clk 0:02:18.9]} 11.
Qxh8 {[%clk 0:02:09.2]} 11... Qxd4 {[%clk 0:02:15.6]} 12. Nd2 {[%clk 0:02:04.6]}
12... Nf6 {[%clk 0:02:04.7]} 13. O-O-O {[%clk 0:02:04.9]} 13... Nbd7 {[%clk
0:02:03]} 14. h4 {[%clk 0:02:02]} 14... g4 {[%clk 0:02:00.3]} 15. h5 {[%clk
0:01:46.3]} 15... Ne5 {[%clk 0:02:00.4]} 16. Be2 {[%clk 0:01:28.6]} 16... Nf7
{[%clk 0:01:58.7]} 17. Nb3 {[%clk 0:01:22.5]} 17... Qxf2 {[%clk 0:01:51.6]} 0-1

[Event "Early-Titled-Tuesday-Blitz-June-18-2024"]
[Site "Chess.com"]
[Date "2024.06.18"]
[Round "5"]
[White "JiaHaoxiang"]
[Black "rookpower2004"]
[Result "1-0"]
[WhiteElo "2644"]
[BlackElo "2467"]
[TimeControl "180+1"]
[EndTime "8:54:36 PDT"]
[Termination "JiaHaoxiang won by resignation"]

1. e4 {[%clk 0:03:00.9]} 1... e5 {[%clk 0:02:59.4]} 2. Nf3 {[%clk 0:03:00.4]}
2... Nc6 {[%clk 0:02:54]} 3. Bb5 {[%clk 0:02:53.1]} 3... a6 {[%clk 0:02:53.4]}
4. Ba4 {[%clk 0:02:42.5]} 4... Nf6 {[%clk 0:02:53.3]} 5. d3 {[%clk 0:02:35.4]}
5... b5 {[%clk 0:02:51.8]} 6. Bb3 {[%clk 0:02:35.3]} 6... d6 {[%clk 0:02:50.7]}
7. c3 {[%clk 0:02:30.5]} 7... Be7 {[%clk 0:02:49.4]} 8. Nbd2 {[%clk 0:02:19.6]}
8... O-O {[%clk 0:02:48.4]} 9. Nf1 {[%clk 0:02:20]} 9... d5 {[%clk 0:02:40.7]}
10. exd5 {[%clk 0:02:09.4]} 10... Nxd5 {[%clk 0:02:41.6]} 11. Ng3 {[%clk
0:02:09.5]} 11... Nf4 {[%clk 0:02:34.5]} 12. Bxf4 {[%clk 0:02:07.8]} 12... exf4
{[%clk 0:02:35.4]} 13. Ne4 {[%clk 0:02:05.5]} 13... Kh8 {[%clk 0:02:30]} 14. O-O
{[%clk 0:01:51.3]} 14... f5 {[%clk 0:02:27.4]} 15. Ned2 {[%clk 0:01:48.6]} 15...
Qxd3 {[%clk 0:02:21.1]} 16. Re1 {[%clk 0:01:44.1]} 16... Qd6 {[%clk 0:02:19.9]}
17. a4 {[%clk 0:01:38.9]} 17... Bd7 {[%clk 0:02:14.8]} 18. axb5 {[%clk
0:01:37.4]} 18... axb5 {[%clk 0:02:15.7]} 19. Rxa8 {[%clk 0:01:37]} 19... Rb8
{[%clk 0:02:13.3]} 20. Rxb8+ {[%clk 0:01:36.3]} 20... Nxb8 {[%clk 0:02:07.6]}
21. Nf1 {[%clk 0:01:35.5]} 21... Qxd1 {[%clk 0:02:03.2]} 22. Bxd1 {[%clk
0:01:34.3]} 22... Bf6 {[%clk 0:02:01.1]} 23. Ne5 {[%clk 0:01:31.1]} 23... Kg8
{[%clk 0:01:57.2]} 24. Nxd7 {[%clk 0:01:30.5]} 24... Nxd7 {[%clk 0:01:58.1]} 25.
Bb3+ {[%clk 0:01:28.9]} 25... Kf8 {[%clk 0:01:58.5]} 26. Be6 {[%clk 0:01:28.9]}
1-0

[Event "Early-Titled-Tuesday-Blitz-June-18-2024"]
[Site "Chess.com"]
[Date "2024.06.18"]
[Round "5"]
[White "Artyom_ChessMate"]
[Black "unbreakablepawn35"]
[Result "1-0"]
[WhiteElo "2551"]
[BlackElo "2391"]
[TimeControl "180+1"]
[EndTime "8:54:48 PDT"]
[Termination "Artyom_ChessMate won by resignation"]

1. e4 {[%clk 0:03:00.9]} 1... d5 {[%clk 0:02:59.5]} 2. exd5 {[%clk 0:03:00.7]}
2... Qxd5 {[%clk 0:03:00.2]} 3. Nf3 {[%clk 0:03:01]} 3... Nf6 {[%clk 0:02:59.3]}
4. Be2 {[%clk 0:02:59.2]} 4... Nc6 {[%clk 0:02:57.4]} 5. d4 {[%clk 0:02:59.1]}
5... e6 {[%clk 0:02:49.1]} 6. c4 {[%clk 0:02:58.3]} 6... Qa5+ {[%clk 0:02:48.7]}
7. Nc3 {[%clk 0:02:56.9]} 7... Bb4 {[%clk 0:02:49.1]} 8. Bd2 {[%clk 0:02:56.6]}
8... Qf5 {[%clk 0:02:31.4]} 9. O-O {[%clk 0:02:54.7]} 9... O-O {[%clk
0:02:30.3]} 10. a3 {[%clk 0:02:52.4]} 10... Bxc3 {[%clk 0:02:30.2]} 11. Bxc3
{[%clk 0:02:52.3]} 11... Rd8 {[%clk 0:02:30.7]} 12. Bd3 {[%clk 0:02:51.8]} 12...
Qh5 {[%clk 0:02:29.4]} 13. Qc2 {[%clk 0:02:51]} 13... b6 {[%clk 0:02:05.4]} 14.
d5 {[%clk 0:02:45.8]} 14... exd5 {[%clk 0:02:05.6]} 15. Bxf6 {[%clk 0:02:45.4]}
15... gxf6 {[%clk 0:02:06]} 16. cxd5 {[%clk 0:02:45.5]} 16... Ne5 {[%clk
0:01:56]} 17. Nxe5 {[%clk 0:02:41.7]} 17... Qxe5 {[%clk 0:01:41.1]} 18. Rae1
{[%clk 0:02:39.8]} 18... Qd6 {[%clk 0:01:41]} 19. Re3 {[%clk 0:02:39.6]} 19...
Bb7 {[%clk 0:01:32.6]} 20. Rg3+ {[%clk 0:02:37.6]} 20... Kf8 {[%clk 0:01:15.9]}
21. Qc1 {[%clk 0:02:35.4]} 21... Qxd5 {[%clk 0:00:59.3]} 22. Qh6+ {[%clk
0:02:29.3]} 22... Ke7 {[%clk 0:00:59.5]} 23. Re1+ {[%clk 0:02:29.8]} 23... Kd7
{[%clk 0:00:58.9]} 24. Qh3+ {[%clk 0:02:23.8]} 24... Kd6 {[%clk 0:00:56]} 25.
Be4 {[%clk 0:02:18.2]} 25... Qd2 {[%clk 0:00:53.6]} 26. Rd3+ {[%clk 0:02:16.2]}
1-0

[Event "Early-Titled-Tuesday-Blitz-June-18-2024"]
[Site "Chess.com"]
[Date "2024.06.18"]
[Round "5"]
[White "GambitGiesbergen"]
[Black "averageFM"]
[Result "0-1"]
[WhiteElo "2374"]
[BlackElo "2579"]
[TimeControl "180+1"]
[EndTime "8:55:33 PDT"]
[Termination "averageFM won on time"]

1. e4 {[%clk 0:02:46.6]} 1... e5 {[%clk 0:02:59]} 2. Nf3 {[%clk 0:02:44.9]} 2...
Nc6 {[%clk 0:02:58.8]} 3. d4 {[%clk 0:02:42.7]} 3... exd4 {[%clk 0:02:58.3]} 4.
Bc4 {[%clk 0:02:42.8]} 4... Nf6 {[%clk 0:02:56.9]} 5. O-O {[%clk 0:02:41.8]}
5... Nxe4 {[%clk 0:02:45.7]} 6. Re1 {[%clk 0:02:36.1]} 6... d5 {[%clk
0:02:45.6]} 7. Bxd5 {[%clk 0:02:36.5]} 7... Qxd5 {[%clk 0:02:46.1]} 8. Nc3
{[%clk 0:02:37.1]} 8... Qh5 {[%clk 0:02:45.8]} 9. Nxe4 {[%clk 0:02:10.9]} 9...
Be6 {[%clk 0:02:44.2]} 10. Neg5 {[%clk 0:01:43.6]} 10... O-O-O {[%clk
0:02:40.2]} 11. Nxe6 {[%clk 0:01:41.2]} 11... fxe6 {[%clk 0:02:40.5]} 12. Rxe6
{[%clk 0:00:48.8]} 12... Bd6 {[%clk 0:02:35]} 13. Bd2 {[%clk 0:00:30.9]} 13...
Rde8 {[%clk 0:02:26.4]} 14. Qe2 {[%clk 0:00:09.4]} 14... Bxh2+ {[%clk
0:02:21.3]} 15. Kf1 {[%clk 0:00:03.5]} 15... Be5 {[%clk 0:02:12]} 16. Rxe8+
{[%clk 0:00:01.8]} 16... Rxe8 {[%clk 0:02:12.9]} 17. Ng1 {[%clk 0:00:01]} 17...
Qg6 {[%clk 0:02:01.8]} 0-1

[Event "Early-Titled-Tuesday-Blitz-June-18-2024"]
[Site "Chess.com"]
[Date "2024.06.18"]
[Round "5"]
[White "milovichalex"]
[Black "Guldona_2007"]
[Result "0-1"]
[WhiteElo "2399"]
[BlackElo "2268"]
[TimeControl "180+1"]
[EndTime "8:55:39 PDT"]
[Termination "Guldona_2007 won by resignation"]

1. e4 {[%clk 0:02:54.2]} 1... c5 {[%clk 0:02:59.6]} 2. Nf3 {[%clk 0:02:48.5]}
2... d6 {[%clk 0:02:59.1]} 3. d4 {[%clk 0:02:48.9]} 3... cxd4 {[%clk 0:02:59]}
4. Nxd4 {[%clk 0:02:49.8]} 4... Nf6 {[%clk 0:02:59.4]} 5. Nc3 {[%clk 0:02:50.2]}
5... Nc6 {[%clk 0:02:59.7]} 6. Nxc6 {[%clk 0:02:50.1]} 6... bxc6 {[%clk
0:02:59.7]} 7. e5 {[%clk 0:02:50.7]} 7... dxe5 {[%clk 0:02:39]} 8. Qxd8+ {[%clk
0:02:50.1]} 8... Kxd8 {[%clk 0:02:39.4]} 9. Bc4 {[%clk 0:02:50.8]} 9... e6
{[%clk 0:02:36.3]} 10. Bg5 {[%clk 0:02:48.7]} 10... Be7 {[%clk 0:02:34.1]} 11.
O-O-O+ {[%clk 0:02:45.7]} 11... Kc7 {[%clk 0:02:34.4]} 12. Bh4 {[%clk
0:02:45.4]} 12... h6 {[%clk 0:02:33.3]} 13. f3 {[%clk 0:02:44.2]} 13... Re8
{[%clk 0:02:27.7]} 14. Rhe1 {[%clk 0:02:43.8]} 14... Nd5 {[%clk 0:02:24.2]} 15.
Bg3 {[%clk 0:02:39]} 15... f6 {[%clk 0:02:20.2]} 16. Ne2 {[%clk 0:02:22.8]}
16... Ne3 {[%clk 0:02:13]} 17. Bd3 {[%clk 0:02:14.2]} 17... Nxd1 {[%clk
0:02:09.5]} 18. Rxd1 {[%clk 0:02:14.6]} 18... Rd8 {[%clk 0:02:08.1]} 19. Re1
{[%clk 0:02:13.5]} 19... a5 {[%clk 0:02:06.2]} 20. a3 {[%clk 0:02:13.4]} 20...
Ba6 {[%clk 0:02:05.8]} 21. Bxa6 {[%clk 0:02:13.1]} 21... Rxa6 {[%clk 0:02:06]}
22. c3 {[%clk 0:02:12.3]} 22... Bc5 {[%clk 0:02:05.1]} 23. Kc2 {[%clk
0:02:11.5]} 23... Be3 {[%clk 0:02:02.7]} 24. b3 {[%clk 0:01:41.9]} 24... Rd2+
{[%clk 0:01:56.1]} 25. Kb1 {[%clk 0:01:38.5]} 25... Rb6 {[%clk 0:01:56.2]} 26.
Nc1 {[%clk 0:01:36.3]} 26... Bf2 {[%clk 0:01:55.9]} 27. Re2 {[%clk 0:01:20.5]}
27... Rxe2 {[%clk 0:01:45.3]} 28. Nxe2 {[%clk 0:01:20.3]} 28... Bxg3 {[%clk
0:01:45.9]} 29. Nxg3 {[%clk 0:01:18]} 29... Rxb3+ {[%clk 0:01:45.9]} 30. Kc2
{[%clk 0:01:18.2]} 30... Rxa3 {[%clk 0:01:45.9]} 31. Kb2 {[%clk 0:01:14.2]}
31... Ra4 {[%clk 0:01:45.9]} 32. Nh5 {[%clk 0:01:12]} 32... Rh4 {[%clk 0:01:44]}
33. Nxg7 {[%clk 0:01:09.3]} 33... Kd7 {[%clk 0:01:40.3]} 34. h3 {[%clk
0:01:08.3]} 34... Ke7 {[%clk 0:01:40.2]} 35. Kb3 {[%clk 0:01:06.6]} 35... Kf7
{[%clk 0:01:40]} 0-1

[Event "Early-Titled-Tuesday-Blitz-June-18-2024"]
[Site "Chess.com"]
[Date "2024.06.18"]
[Round "5"]
[White "PedroGil25"]
[Black "Adrian-thorsen"]
[Result "1/2-1/2"]
[WhiteElo "2558"]
[BlackElo "2331"]
[TimeControl "180+1"]
[EndTime "8:55:41 PDT"]
[Termination "Game drawn by agreement"]

1. e4 {[%clk 0:02:59.6]} 1... c5 {[%clk 0:02:58.8]} 2. Nf3 {[%clk 0:02:59.5]}
2... a6 {[%clk 0:02:59.2]} 3. c3 {[%clk 0:02:58.3]} 3... e6 {[%clk 0:02:58.8]}
4. d4 {[%clk 0:02:56.5]} 4... d5 {[%clk 0:02:58.9]} 5. exd5 {[%clk 0:02:56.4]}
5... exd5 {[%clk 0:02:53.9]} 6. dxc5 {[%clk 0:02:54.2]} 6... Bxc5 {[%clk
0:02:53.3]} 7. Be2 {[%clk 0:02:54.6]} 7... Nf6 {[%clk 0:02:53.5]} 8. O-O {[%clk
0:02:54.6]} 8... O-O {[%clk 0:02:53.9]} 9. Bg5 {[%clk 0:02:53.9]} 9... h6 {[%clk
0:02:54]} 10. Bh4 {[%clk 0:02:52.7]} 10... Be6 {[%clk 0:02:54]} 11. Nbd2 {[%clk
0:02:51.6]} 11... Nc6 {[%clk 0:02:52.3]} 12. Nb3 {[%clk 0:02:50.6]} 12... Be7
{[%clk 0:02:52.3]} 13. Nbd4 {[%clk 0:02:50.9]} 13... Nxd4 {[%clk 0:02:52.1]} 14.
Nxd4 {[%clk 0:02:51.8]} 14... Ne4 {[%clk 0:02:48.8]} 15. Bxe7 {[%clk 0:02:50.7]}
15... Qxe7 {[%clk 0:02:49.7]} 16. Bd3 {[%clk 0:02:50.4]} 16... Rad8 {[%clk
0:02:45.1]} 17. Qe2 {[%clk 0:02:49.4]} 17... Nc5 {[%clk 0:02:44]} 18. Bc2 {[%clk
0:02:48.3]} 18... Qf6 {[%clk 0:02:43.8]} 19. Rfe1 {[%clk 0:02:47.2]} 19... Rfe8
{[%clk 0:02:43.3]} 20. Rad1 {[%clk 0:02:41.9]} 20... Bd7 {[%clk 0:02:43]} 21.
Qf3 {[%clk 0:02:41.4]} 21... Qxf3 {[%clk 0:02:39.7]} 22. Nxf3 {[%clk 0:02:42.3]}
22... Bc6 {[%clk 0:02:36.5]} 23. Nd4 {[%clk 0:02:41.8]} 23... g6 {[%clk
0:02:30.6]} 24. f3 {[%clk 0:02:41.8]} 24... Kg7 {[%clk 0:02:30]} 25. Kf2 {[%clk
0:02:41.9]} 25... Kf6 {[%clk 0:02:30.3]} 26. h4 {[%clk 0:02:41.6]} 26... Ba4
{[%clk 0:02:21.1]} 27. b3 {[%clk 0:02:39.6]} 27... Bc6 {[%clk 0:02:20]} 28. g4
{[%clk 0:02:39.7]} 28... Ne6 {[%clk 0:02:13.8]} 29. Nxe6 {[%clk 0:02:35.3]}
29... fxe6 {[%clk 0:02:13.1]} 30. f4 {[%clk 0:02:34.6]} 30... g5 {[%clk
0:01:45.4]} 31. fxg5+ {[%clk 0:02:32.5]} 31... hxg5 {[%clk 0:01:46.3]} 32. h5
{[%clk 0:02:32.8]} 32... e5 {[%clk 0:01:46.4]} 33. Kg3 {[%clk 0:02:30.1]} 33...
e4 {[%clk 0:01:17.9]} 34. Rf1+ {[%clk 0:02:29.9]} 34... Ke6 {[%clk 0:01:17.3]}
35. Rf5 {[%clk 0:02:29.6]} 35... Rf8 {[%clk 0:01:15.5]} 36. Rdf1 {[%clk
0:02:25.4]} 36... Rxf5 {[%clk 0:01:14.2]} 37. Rxf5 {[%clk 0:02:26.3]} 37... d4
{[%clk 0:01:14.4]} 38. cxd4 {[%clk 0:02:23]} 38... Rxd4 {[%clk 0:01:15.3]} 39.
Rxg5 {[%clk 0:02:22]} 39... Rd2 {[%clk 0:01:15.1]} 40. Bxe4 {[%clk 0:02:06.3]}
40... Bxe4 {[%clk 0:01:13.1]} 41. Kf4 {[%clk 0:02:06.9]} 41... Bb1 {[%clk
0:01:08.1]} 42. Rg7 {[%clk 0:02:02.3]} 42... Bxa2 {[%clk 0:00:57.1]} 43. Rxb7
{[%clk 0:02:02.4]} 1/2-1/2

[Event "Early-Titled-Tuesday-Blitz-June-18-2024"]
[Site "Chess.com"]
[Date "2024.06.18"]
[Round "5"]
[White "Yan_Dyomin2010"]
[Black "DeArron_Fox"]
[Result "1-0"]
[WhiteElo "2650"]
[BlackElo "2472"]
[TimeControl "180+1"]
[EndTime "8:55:49 PDT"]
[Termination "Yan_Dyomin2010 won on time"]

1. e4 {[%clk 0:03:00.9]} 1... c5 {[%clk 0:01:26.7]} 2. Nf3 {[%clk 0:02:59.2]}
2... e6 {[%clk 0:01:26.7]} 3. c3 {[%clk 0:02:58.9]} 3... d5 {[%clk 0:01:26.1]}
4. exd5 {[%clk 0:02:59.1]} 4... Qxd5 {[%clk 0:01:27]} 5. d4 {[%clk 0:02:58.8]}
5... Nf6 {[%clk 0:01:26.8]} 6. Be3 {[%clk 0:02:56]} 6... cxd4 {[%clk 0:01:22]}
7. cxd4 {[%clk 0:02:56.6]} 7... Bb4+ {[%clk 0:01:21.1]} 8. Nc3 {[%clk
0:02:56.6]} 8... O-O {[%clk 0:01:21.7]} 9. Bd3 {[%clk 0:02:54.9]} 9... Bd7
{[%clk 0:01:21.8]} 10. Qe2 {[%clk 0:02:44.1]} 10... Rc8 {[%clk 0:00:55.2]} 11.
Bd2 {[%clk 0:02:41.4]} 11... Bxc3 {[%clk 0:00:49.2]} 12. bxc3 {[%clk 0:02:42.3]}
12... Nc6 {[%clk 0:00:33.1]} 13. O-O {[%clk 0:02:37]} 13... Be8 {[%clk
0:00:24.2]} 14. Rfe1 {[%clk 0:02:32.3]} 14... h6 {[%clk 0:00:23.5]} 15. c4
{[%clk 0:02:31.5]} 15... Qh5 {[%clk 0:00:15.5]} 16. Bc3 {[%clk 0:02:31.3]} 16...
a6 {[%clk 0:00:05.6]} 17. d5 {[%clk 0:02:29]} 17... exd5 {[%clk 0:00:05.1]} 18.
Bxf6 {[%clk 0:02:29.9]} 18... gxf6 {[%clk 0:00:05.3]} 19. cxd5 {[%clk
0:02:28.3]} 19... Qxd5 {[%clk 0:00:05.6]} 20. Rad1 {[%clk 0:02:28.2]} 20... Qh5
{[%clk 0:00:05.2]} 21. Qe4 {[%clk 0:02:26.9]} 21... Qg6 {[%clk 0:00:02.6]} 22.
Qh4 {[%clk 0:02:23.4]} 22... Qg7 {[%clk 0:00:03]} 23. Re4 {[%clk 0:02:23.1]}
23... Bd7 {[%clk 0:00:02.1]} 24. Rf4 {[%clk 0:02:23.2]} 24... f5 {[%clk
0:00:02.1]} 25. h3 {[%clk 0:02:15.6]} 25... Be6 {[%clk 0:00:02.4]} 26. Bxf5
{[%clk 0:02:15.2]} 26... Bxf5 {[%clk 0:00:02.7]} 27. Rxf5 {[%clk 0:02:16.1]}
27... Rd8 {[%clk 0:00:03.3]} 28. Re1 {[%clk 0:02:16.3]} 28... Re8 {[%clk
0:00:02.5]} 29. Rb1 {[%clk 0:02:15.6]} 29... Re7 {[%clk 0:00:01.7]} 30. Rf4
{[%clk 0:02:15.3]} 30... Kh8 {[%clk 0:00:02.1]} 31. Rg4 {[%clk 0:02:15.3]} 31...
Qh7 {[%clk 0:00:02.7]} 32. Qf6+ {[%clk 0:02:15.1]} 1-0

[Event "Early-Titled-Tuesday-Blitz-June-18-2024"]
[Site "Chess.com"]
[Date "2024.06.18"]
[Round "5"]
[White "Longstom"]
[Black "Veleamater"]
[Result "1-0"]
[WhiteElo "2258"]
[BlackElo "2389"]
[TimeControl "180+1"]
[EndTime "8:55:59 PDT"]
[Termination "Longstom won by resignation"]

1. e4 {[%clk 0:03:00.9]} 1... d6 {[%clk 0:03:00.9]} 2. d4 {[%clk 0:03:00.1]}
2... g6 {[%clk 0:03:01.1]} 3. Nf3 {[%clk 0:03:00.1]} 3... Bg7 {[%clk 0:03:01.4]}
4. Bd3 {[%clk 0:02:59.4]} 4... Nf6 {[%clk 0:03:01.8]} 5. O-O {[%clk 0:02:58.5]}
5... O-O {[%clk 0:03:01.8]} 6. c4 {[%clk 0:02:56.2]} 6... Nc6 {[%clk 0:03:00.9]}
7. Nc3 {[%clk 0:02:55.9]} 7... h6 {[%clk 0:02:59.7]} 8. a3 {[%clk 0:02:55.4]}
8... e5 {[%clk 0:02:59.7]} 9. Bc2 {[%clk 0:02:55]} 9... exd4 {[%clk 0:02:52.4]}
10. Nxd4 {[%clk 0:02:55.9]} 10... Nxd4 {[%clk 0:02:52.7]} 11. Qxd4 {[%clk
0:02:56.8]} 11... Be6 {[%clk 0:02:53]} 12. Qd3 {[%clk 0:02:43.3]} 12... Nd7
{[%clk 0:02:46.5]} 13. f4 {[%clk 0:02:37.3]} 13... f5 {[%clk 0:02:44]} 14. exf5
{[%clk 0:02:33.6]} 14... Bxf5 {[%clk 0:02:43.4]} 15. Qd5+ {[%clk 0:02:33.8]}
15... Kh7 {[%clk 0:02:42.8]} 16. Bxf5 {[%clk 0:02:31.4]} 16... Rxf5 {[%clk
0:02:36.9]} 17. Qxb7 {[%clk 0:02:31.7]} 17... Nc5 {[%clk 0:02:34.8]} 18. Qf3
{[%clk 0:02:22.8]} 18... Nb3 {[%clk 0:02:33.8]} 19. Rb1 {[%clk 0:02:22.7]} 19...
Rb8 {[%clk 0:02:34.1]} 20. Nb5 {[%clk 0:02:18.3]} 20... Nxc1 {[%clk 0:02:17.6]}
21. Rfxc1 {[%clk 0:02:09.7]} 21... a6 {[%clk 0:02:17.4]} 22. Nc3 {[%clk
0:02:07.1]} 22... Bd4+ {[%clk 0:02:11.8]} 23. Kh1 {[%clk 0:02:06]} 23... Qf8
{[%clk 0:02:08.7]} 24. g3 {[%clk 0:02:02.7]} 24... Re8 {[%clk 0:02:08.5]} 25.
Re1 {[%clk 0:01:59.1]} 25... c5 {[%clk 0:02:06]} 26. Nd5 {[%clk 0:01:50.8]}
26... Rb8 {[%clk 0:01:58.2]} 27. Re7+ {[%clk 0:01:44.4]} 27... Rf7 {[%clk
0:01:57.8]} 28. Rbe1 {[%clk 0:01:41.1]} 28... Rb7 {[%clk 0:01:57.7]} 29. Nf6+
{[%clk 0:01:31.8]} 29... Bxf6 {[%clk 0:01:55.5]} 30. Rxb7 {[%clk 0:01:32.3]}
30... h5 {[%clk 0:01:48.9]} 31. Qd5 {[%clk 0:01:31.5]} 31... Rg7 {[%clk
0:01:47]} 32. Rxg7+ {[%clk 0:01:26.1]} 32... Bxg7 {[%clk 0:01:46.9]} 33. b4
{[%clk 0:01:24.4]} 33... Bd4 {[%clk 0:01:35.6]} 34. Re6 {[%clk 0:01:20.5]} 34...
h4 {[%clk 0:01:12.3]} 35. Rxd6 {[%clk 0:01:17.5]} 35... h3 {[%clk 0:01:12.7]}
36. Rd7+ {[%clk 0:01:17.1]} 36... Kh8 {[%clk 0:01:09.4]} 37. Rd8 {[%clk
0:01:12.2]} 1-0